fUSD/lending_fUSD_20251214
["ID","MTS","AMOUNT","RATE_DAILY","PERIOD"]
[398485270,1765732232857,-16.05141096,0.00015791,2]
[398485271,1765732232904,-134.94858904,0.00015791,2]
[398485272,1765732232917,-250.0,0.00015791,2]
[398485273,1765732232929,-500.0,0.00015791,2]
[398485274,1765732232942,-151.0,0.00015791,2]
[398485275,1765732232955,-250.0,0.00015791,2]
[398485276,1765732232968,-500.0,0.00015791,2]
[398485277,1765732232981,-151.0,0.00015791,2]
[398485278,1765732232999,-500.0,0.00015791,2]
[398485279,1765732233011,-250.0,0.00015791,2]
[398485280,1765732233025,-151.0,0.00015791,2]
[398485281,1765732233037,-160.0,0.00015791,2]
[398485282,1765732233050,-500.0,0.00015791,2]
[398485283,1765732233063,-222.09202813,0.00015791,2]
[398485284,1765732233076,-250.0,0.00015791,2]
[398485285,1765732233089,-151.0,0.00015791,2]
[398485286,1765732233102,-500.0,0.00015791,2]
[398485287,1765732233114,-250.0,0.00015791,2]
[398485288,1765732233127,-500.0,0.00015791,2]
[398485289,1765732233140,-250.0,0.00015791,2]
[398485290,1765732233154,-151.0,0.00015791,2]
[398485291,1765732233167,-500.0,0.00015791,2]
[398485292,1765732233180,-250.0,0.00015791,2]
[398485293,1765732233193,-151.0,0.00015791,2]
[398485294,1765732233206,-500.0,0.00015791,2]
[398485295,1765732233218,-250.0,0.00015791,2]
[398485296,1765732233230,-151.0,0.00015791,2]
[398485297,1765732233243,-250.0,0.00015791,2]
[398485298,1765732233255,-151.0,0.00015791,2]
[398485299,1765732233268,-602.94574228,0.00015791,2]
[398485300,1765732233281,-250.0,0.00015791,2]
[398485301,1765732233294,-151.0,0.00015791,2]
[398485302,1765732233306,-242.25792744,0.00015791,2]
[398485303,1765732233319,-151.0,0.00015791,2]
[398485304,1765732233333,-500.0,0.00015791,2]
[398485305,1765732233346,-151.0,0.00015791,2]
[398485306,1765732233359,-151.0,0.00015791,2]
[398485307,1765732233371,-620.0,0.00015791,2]
[398485308,1765732233383,-151.0,0.00015791,2]
[398485309,1765732233396,-500.0,0.00015791,2]
[398485310,1765732233407,-250.0,0.00015791,2]
[398485311,1765732233419,-230.81793617,0.00015791,2]
[398485312,1765732233432,-500.0,0.00015791,2]
[398485313,1765732233444,-250.0,0.00015791,2]
[398485314,1765732233455,-500.0,0.00015791,2]
[398485315,1765732233468,-500.0,0.00015791,2]
[398485316,1765732233479,-250.0,0.00015791,2]
[398485317,1765732233491,-500.0,0.00015791,2]
[398485318,1765732233503,-250.0,0.00015791,2]
[398485319,1765732233514,-500.0,0.00015791,2]
[398485320,1765732233526,-62.84097632,0.00015791,2]
[398485321,1765732233541,-187.15902368,0.00015791,2]
[398485322,1765732233552,-500.0,0.00015791,2]
[398485323,1765732233564,-250.0,0.00015791,2]
[398485324,1765732233576,-250.0,0.00015791,2]
[398485325,1765732233588,-500.0,0.00015791,2]
[398485326,1765732233600,-250.0,0.00015791,2]
[398485327,1765732233611,-500.0,0.00015791,2]
[398485328,1765732233623,-285.23225234,0.00015791,2]
[398485329,1765732233635,-500.0,0.00015791,2]
[398485330,1765732233647,-286.49361823,0.00015791,2]
[398485331,1765732233658,-500.0,0.00015791,2]
[398485332,1765732233670,-151.0,0.00015791,2]
[398485333,1765732233683,-151.0,0.00015791,2]
[398485334,1765732233696,-500.0,0.00015791,2]
[398485335,1765732233708,-151.0,0.00015791,2]
[398485336,1765732233721,-500.0,0.00015791,2]
[398485337,1765732233733,-151.0,0.00015791,2]
[398485338,1765732233745,-500.0,0.00015791,2]
[398485339,1765732233757,-151.0,0.00015791,2]
[398485340,1765732233768,-500.0,0.00015791,2]
[398485341,1765732233780,-151.0,0.00015791,2]
[398485342,1765732233792,-500.0,0.00015791,2]
[398485343,1765732233805,-151.0,0.00015791,2]
[398485344,1765732233817,-151.0,0.00015791,2]
[398485345,1765732233829,-151.0,0.00015791,2]
[398485346,1765732233841,-500.0,0.00015791,2]
[398485347,1765732233861,-151.0,0.00015791,2]
[398485348,1765732233873,-500.0,0.00015791,2]
[398485349,1765732233884,-574.12855637,0.00015791,2]
[398485350,1765732233896,-151.0,0.00015791,2]
[398485351,1765732233907,-500.0,0.00015791,2]
[398485352,1765732233919,-151.0,0.00015791,2]
[398485353,1765732233932,-470.58910041,0.00015791,2]
[398485354,1765732233943,-300.0,0.00015791,2]
[398485355,1765732233955,-209.40437684,0.00015791,2]
[398485356,1765732233966,-500.0,0.00015791,2]
[398485357,1765732233978,-500.0,0.00015791,2]
[398485358,1765732233992,-500.0,0.00015791,2]
[398485359,1765732234004,-500.0,0.00015791,2]
[398485360,1765732234015,-500.0,0.00015791,2]
[398485361,1765732234027,-500.0,0.00015791,2]
[398485362,1765732234038,-500.0,0.00015791,2]
[398485363,1765732234050,-500.0,0.00015791,2]
[398485364,1765732234061,-333.28172985,0.00015791,2]
[398485365,1765732234079,-166.71827015,0.00015791,2]
[398485366,1765732234091,-500.0,0.00015791,2]
[398485367,1765732234102,-500.0,0.00015791,2]
[398485368,1765732234114,-500.0,0.00015791,2]
[398485369,1765732234127,-6864.4013067,0.00015791,2]
[398485370,1765732234139,-500.0,0.00015791,2]
[398485371,1765732234150,-500.0,0.00015791,2]
[398485372,1765732234162,-500.0,0.00015791,2]
[398485373,1765732234175,-500.0,0.00015791,2]
[398485374,1765732234187,-500.0,0.00015791,2]
[398485375,1765732234199,-1000.0,0.00015791,2]
[398485376,1765732234211,-500.0,0.00015791,2]
[398485377,1765732234222,-500.0,0.00015791,2]
[398485378,1765732234235,-500.0,0.00015791,2]
[398485379,1765732234249,-200.0,0.00015791,2]
[398485380,1765732234261,-1000.0,0.00015791,2]
[398485381,1765732234273,-500.0,0.00015791,2]
[398485382,1765732234284,-1000.0,0.00015791,2]
[398485383,1765732234295,-500.0,0.00015791,2]
[398485384,1765732234307,-1000.0,0.00015791,2]
[398485385,1765732234318,-500.0,0.00015791,2]
[398485386,1765732234329,-1000.0,0.00015791,2]
[398485387,1765732234341,-500.0,0.00015791,2]
[398485388,1765732234353,-1000.0,0.00015791,2]
[398485389,1765732234365,-500.0,0.00015791,2]
[398485390,1765732234378,-1000.0,0.00015791,2]
[398485391,1765732234391,-500.0,0.00015791,2]
[398485392,1765732234403,-1000.0,0.00015791,2]
[398485393,1765732234415,-500.0,0.00015791,2]
[398485394,1765732234428,-1000.0,0.00015791,2]
[398485395,1765732234441,-500.0,0.00015791,2]
[398485396,1765732234454,-1000.0,0.00015791,2]
[398485397,1765732234470,-1000.0,0.00015791,2]
[398485398,1765732234483,-250.0,0.00015791,2]
[398485399,1765732234496,-250.0,0.00015791,2]
[398485400,1765732234508,-250.0,0.00015791,2]
[398485401,1765732234520,-250.0,0.00015791,2]
[398485402,1765732234533,-250.0,0.00015791,2]
[398485403,1765732234545,-250.0,0.00015791,2]
[398485404,1765732234558,-250.0,0.00015791,2]
[398485405,1765732234571,-151.0,0.00015791,2]
[398485406,1765732234583,-261.15071773,0.00015791,2]
[398485407,1765732234594,-220.0,0.00015791,2]
[398485408,1765732234607,-220.0,0.00015791,2]
[398485409,1765732234618,-240.72552052,0.00015791,2]
[398485410,1765732234630,-200.0,0.00015791,2]
[398485411,1765732234641,-1532.53488689,0.00015793,2]
[398485412,1765732234653,-500.0,0.00015799,2]
[398485413,1765732234666,-623.92246801,0.00015799,2]
[398485414,1765732234679,-500.0,0.00015799,2]
[398485415,1765732234691,-500.0,0.00015799,2]
[398485416,1765732234703,-574.19776068,0.00015799,2]
[398485417,1765732234716,-500.0,0.00015799,2]
[398485418,1765732234728,-500.0,0.00015799,2]
[398485419,1765732234741,-333.30232116,0.00015799,2]
[398485420,1765732234754,-500.0,0.00015799,2]
[398485421,1765732234766,-500.0,0.00015799,2]
[398485422,1765732234780,-506.13624996,0.00015799,2]
[398485423,1765732234791,-2646.3744,0.000158,2]
[398485424,1765732234803,-151.0,0.00015818,2]
[398485425,1765732234815,-208.59020589,0.0001582,2]
[398485426,1765732234826,-500.0,0.0001582,2]
[398485427,1765732234839,-211.31968186,0.0001582,2]
[398485428,1765732234850,-288.17285076,0.0001582,2]
[398485429,1765732234862,-150.0,0.00015821,2]
[398485430,1765732234875,-250.56704561,0.00015821,2]
[398485431,1765732234887,-150.0,0.00015821,2]
[398485432,1765732234899,-500.0,0.00015821,2]
[398485433,1765732234912,-151.81071488,0.00015821,2]
[398485434,1765732234924,-150.0,0.00015821,2]
[398485435,1765732234935,-150.0,0.00015821,2]
[398485436,1765732234947,-150.0,0.00015821,2]
[398485437,1765732234958,-500.0,0.00015821,2]
[398485438,1765732234971,-152.74722845,0.00015821,2]
[398485439,1765732234983,-606.95456194,0.00015821,2]
[398485440,1765732235000,-500.0,0.00015821,2]
[398485441,1765732235012,-150.0,0.00015821,2]
[398485442,1765732235024,-154.32459893,0.00015821,2]
[398485443,1765732235037,-500.0,0.00015821,2]
[398485444,1765732235048,-500.0,0.00015821,2]
[398485445,1765732235061,-500.0,0.00015821,2]
[398485446,1765732235075,-150.0,0.00015821,2]
[398485447,1765732235087,-150.0,0.00015821,2]
[398485448,1765732235100,-150.0,0.00015821,2]
[398485449,1765732235111,-2830.0,0.00015821,2]
[398485450,1765732235124,-11382.67742867,0.00015833,2]
[398485451,1765732235136,-1976.0,0.00015838,2]
[398485452,1765732235147,-171.08099914,0.00015841,2]
[398485453,1765732235159,-1111.0,0.00015846,2]
[398485454,1765732235171,-609.67599965,0.00015899,2]
[398485455,1765732235184,-382.07221643,0.00015899,2]
[398485456,1765732235195,-500.0,0.00015899,2]
[398485457,1765732235207,-500.0,0.00015899,2]
[398485458,1765732235219,-463.85327464,0.000159,2]
[398485459,1765732235231,-1111.0,0.00015901,2]
[398485460,1765732235244,-256.11657701,0.00015918,2]
[398485461,1765732235257,-202.73292037,0.00015918,2]
[398485462,1765732235269,-150.0,0.00015918,2]
[398485463,1765732235283,-10020.9738428,0.00015941,2]
[398485464,1765732235295,-313805.14729225,0.00015941,2]
[398485478,1765732238918,-2029.21072622,0.00015941,2]
[398485479,1765732238930,-51312.42865784,0.00015941,2]
[398485480,1765732238942,-65972.32654172,0.00015941,2]
[398485481,1765732239211,250.0,0.00015684,2]
[398485482,1765732239244,150.0,0.00015684,2]
[398485483,1765732239568,-460.3381386,0.00015786,2]
[398485484,1765732239579,-333.42332408,0.00015786,2]
[398485485,1765732239591,-149.94472858,0.00015786,2]
[398485486,1765732239600,-150.0,0.00015821,2]
[398485487,1765732239609,-3006.42808511,0.00015941,2]
[398485488,1765732239620,-66701.81559136,0.00015941,2]
[398485489,1765732239629,-151.0,0.00015941,2]
[398485490,1765732239639,-151.0,0.00015941,2]
[398485491,1765732239648,-1314.583384,0.00015941,2]
[398485492,1765732239657,-151.0,0.00015941,2]
[398485493,1765732239666,-151.0,0.00015941,2]
[398485494,1765732239676,-151.0,0.00015941,2]
[398485495,1765732239686,-151.0,0.00015941,2]
[398485496,1765732239695,-151.0,0.00015941,2]
[398485497,1765732239704,-151.0,0.00015941,2]
[398485498,1765732239714,-151.0,0.00015941,2]
[398485499,1765732239724,-151.0,0.00015941,2]
[398485500,1765732239733,-844.087448,0.00015941,2]
[398485501,1765732239742,-844.087448,0.00015941,2]
[398485502,1765732239751,-844.087448,0.00015941,2]
[398485503,1765732239761,-844.087448,0.00015941,2]
[398485504,1765732239770,-151.29016,0.00015941,2]
[398485505,1765732239780,-151.0,0.00015941,2]
[398485506,1765732239789,-172.562361,0.00015941,2]
[398485508,1765732239799,-621.631056,0.00015941,2]
[398485510,1765732239808,-621.631056,0.00015941,2]
[398485511,1765732239817,-621.631056,0.00015941,2]
[398485512,1765732239826,-621.631056,0.00015941,2]
[398485513,1765732239836,-151.0,0.00015941,2]
[398485514,1765732239844,-151.0,0.00015941,2]
[398485515,1765732239854,-151.0,0.00015941,2]
[398485516,1765732239863,-239.415417,0.00015941,2]
[398485517,1765732239872,-1111.0,0.00015956,2]
[398485518,1765732239881,-150.0,0.00015958,2]
[398485519,1765732239891,-500.0,0.00015958,2]
[398485520,1765732239900,-150.0,0.00015958,2]
[398485521,1765732239909,-150.0,0.00015958,2]
[398485522,1765732239919,-630.0,0.00015958,2]
[398485523,1765732239928,-150.0,0.00015958,2]
[398485524,1765732239937,-500.0,0.00015958,2]
[398485525,1765732239946,-500.0,0.00015958,2]
[398485526,1765732239955,-115.25667581,0.00015958,2]
[398485527,1765732239966,-384.74332419,0.00015958,2]
[398485528,1765732239976,-500.0,0.00015958,2]
[398485529,1765732239987,-150.0,0.00015958,2]
[398485530,1765732239998,-250.0,0.00015958,2]
[398485531,1765732240007,-2830.0,0.00015958,2]
[398485532,1765732240017,-166.0,0.00015958,2]
[398485533,1765732240027,-1589.31114767,0.00015967,2]
[398485534,1765732240040,-323.79421814,0.00015967,2]
[398485535,1765732240052,-1399.95,0.00015967,2]
[398485536,1765732240066,-4930.16781918,0.00015967,2]
[398485537,1765732240077,-3139.45424368,0.00015967,2]
[398485538,1765732240087,-658.37055018,0.0001599,2]
[398485539,1765732240097,-797.0,0.00015992,2]
[398485540,1765732240107,-386.00822049,0.00015999,2]
[398485541,1765732240117,-35769.61098565,0.00016,4]
[398485542,1765732240128,-8355.461751,0.00016,4]
[398485543,1765732240139,-36008.590824,0.00016,4]
[398485544,1765732240156,-323906.45313271,0.00016,4]
[398485547,1765732240305,-59115.0097079,0.00016,4]
[398485548,1765732240316,-1129.1994,0.00016,4]
[398485549,1765732240327,-1111.82664481,0.00016,4]
[398485551,1765732240338,-271.298425,0.00016,4]
[398485553,1765732240349,-2077.05670633,0.00016,4]
[398485554,1765732240360,-8968.96,0.00016,4]
[398485555,1765732240376,-452.57341438,0.00016,4]
[398485556,1765732240387,-454.00513529,0.00016,4]
[398485558,1765732240398,-300.639777,0.00016,4]
[398485560,1765732240422,-140406.18698565,0.00016,4]
[398485561,1765732240431,-176.192875,0.00016,2]
[398485562,1765732240440,-151.0,0.00016,2]
[398485563,1765732240449,-151.0,0.00016,2]
[398485564,1765732240459,-152.944698,0.00016,2]
[398485565,1765732240469,-1000.0,0.00016,2]
[398485566,1765732240478,-1000.0,0.00016,2]
[398485567,1765732240487,-1000.0,0.00016,2]
[398485568,1765732240496,-764.866,0.00016,2]
[398485569,1765732240505,-151.0,0.00016,2]
[398485570,1765732240514,-151.0,0.00016,2]
[398485571,1765732240523,-151.0,0.00016,2]
[398485572,1765732240532,-151.0,0.00016,2]
[398485573,1765732240542,-151.0,0.00016,2]
[398485574,1765732240551,-151.0,0.00016,2]
[398485575,1765732240560,-844.087448,0.00016,2]
[398485576,1765732240570,-844.087448,0.00016,2]
[398485577,1765732240579,-844.087448,0.00016,2]
[398485578,1765732240589,-844.087448,0.00016,2]
[398485579,1765732240598,-151.0,0.00016,2]
[398485580,1765732240607,-621.631056,0.00016,2]
[398485581,1765732240616,-621.631056,0.00016,2]
[398485582,1765732240625,-621.631056,0.00016,2]
[398485583,1765732240634,-621.631056,0.00016,2]
[398485584,1765732240643,-151.0,0.00016,2]
[398485585,1765732240653,-151.0,0.00016,2]
[398485586,1765732240662,-151.0,0.00016,2]
[398485587,1765732240671,-200.0,0.00016,2]
[398485588,1765732240681,-151.0,0.00016,2]
[398485589,1765732240690,-151.0,0.00016,2]
[398485590,1765732240699,-151.0,0.00016,2]
[398485591,1765732240710,-151.0,0.00016,2]
[398485592,1765732240719,-207.0,0.0001601,2]
[398485593,1765732240728,-1111.0,0.00016011,2]
[398485594,1765732240737,-151.0,0.00016023,2]
[398485595,1765732240747,-151.0,0.00016026,2]
[398485596,1765732240757,-323.0,0.00016031,2]
[398485597,1765732240766,-340.0,0.00016035,2]
[398485598,1765732240775,-439.0,0.00016042,2]
[398485599,1765732240785,-150.11,0.00016045,2]
[398485600,1765732240795,-166.66,0.00016045,2]
[398485601,1765732240804,-13161.0,0.00016055,2]
[398485602,1765732240813,-323.0,0.00016062,2]
[398485603,1765732240822,-1105.23,0.00016064,2]
[398485604,1765732240831,-1111.0,0.00016066,2]
[398485605,1765732240841,-168.0,0.0001607,2]
[398485606,1765732240850,-166.66,0.00016072,2]
[398485607,1765732240859,-151.0,0.00016076,2]
[398485608,1765732240868,-150.0,0.00016095,2]
[398485609,1765732240877,-150.0,0.00016095,2]
[398485610,1765732240886,-202.18031413,0.00016095,2]
[398485611,1765732240895,-237.74351893,0.00016095,2]
[398485612,1765732240904,-160.00931507,0.00016095,2]
[398485613,1765732240913,-209.92847028,0.00016095,2]
[398485614,1765732240922,-150.0,0.00016095,2]
[398485615,1765732240932,-2830.0,0.00016095,2]
[398485616,1765732240941,-323.17,0.00016096,2]
[398485617,1765732240950,-183.96,0.00016096,2]
[398485618,1765732240959,-1000.0,0.000161,2]
[398485619,1765732240968,-11382.67742867,0.000161,2]
[398485620,1765732240977,-158.93317944,0.0001611,2]
[398485621,1765732240987,-2423.34279,0.00016115,2]
[398485622,1765732240998,-1111.0,0.00016121,2]
[398485623,1765732241008,-200.0,0.00016126,2]
[398485624,1765732241018,-297.83,0.00016145,2]
[398485625,1765732241027,-1111.0,0.00016176,2]
[398485626,1765732241038,-150.0,0.000162,2]
[398485627,1765732241047,-150.0,0.000162,2]
[398485628,1765732241056,-155.23,0.000162,2]
[398485629,1765732241068,-553.22,0.000162,2]
[398485630,1765732241077,-150.0,0.000162,2]
[398485631,1765732241086,-356.42,0.000162,2]
[398485632,1765732241095,-150.0,0.000162,2]
[398485633,1765732241105,-150.86,0.000162,2]
[398485634,1765732241114,-1104.63,0.000162,2]
[398485635,1765732241122,-480.71,0.000162,2]
[398485636,1765732241131,-960.88,0.000162,2]
[398485637,1765732241140,-300.32,0.000162,2]
[398485638,1765732241149,-959.4,0.000162,2]
[398485639,1765732241158,-150.0,0.000162,2]
[398485640,1765732241168,-150.0,0.000162,2]
[398485641,1765732241177,-302.1,0.000162,2]
[398485642,1765732241186,-300.0,0.000162,2]
[398485643,1765732241195,-1111.0,0.00016231,2]
[398485644,1765732241204,-150.0,0.00016232,2]
[398485645,1765732241213,-150.0,0.00016232,2]
[398485646,1765732241222,-2830.0,0.00016232,2]
[398485647,1765732241231,-207.93033791,0.00016232,2]
[398485648,1765732241242,-11382.67742867,0.00016233,2]
[398485649,1765732241251,-151.0,0.0001625,2]
[398485650,1765732241260,-151.0,0.0001625,2]
[398485651,1765732241269,-151.0,0.0001625,2]
[398485652,1765732241279,-252.0,0.00016285,2]
[398485653,1765732241288,-1111.0,0.00016286,2]
[398485654,1765732241297,-500.0,0.00016289,2]
[398485655,1765732241307,-52658.2899201,0.000163,2]
[398485656,1765732241316,-151.0,0.000163,2]
[398485657,1765732241325,-151.0,0.000163,2]
[398485658,1765732241334,-151.0,0.000163,2]
[398485659,1765732241343,-151.0,0.000163,2]
[398485660,1765732241352,-151.0,0.000163,2]
[398485661,1765732241362,-151.0,0.000163,2]
[398485662,1765732241371,-844.087448,0.000163,2]
[398485663,1765732241380,-844.087448,0.000163,2]
[398485664,1765732241390,-844.087448,0.000163,2]
[398485665,1765732241401,-844.087448,0.000163,2]
[398485666,1765732241410,-151.0,0.000163,2]
[398485667,1765732241420,-621.631056,0.000163,2]
[398485668,1765732241430,-621.631056,0.000163,2]
[398485669,1765732241442,-621.631056,0.000163,2]
[398485670,1765732241451,-621.631056,0.000163,2]
[398485671,1765732241460,-151.0,0.000163,2]
[398485672,1765732241470,-151.0,0.000163,2]
[398485673,1765732241479,-1105.23,0.00016338,2]
[398485674,1765732241488,-3089.5067,0.00016338,2]
[398485675,1765732241497,-200.0,0.00016339,2]
[398485676,1765732241506,-500.0,0.00016339,2]
[398485677,1765732241515,-595.37131296,0.00016339,2]
[398485678,1765732241525,-217.15233878,0.00016339,2]
[398485679,1765732241534,-200.0,0.00016339,2]
[398485680,1765732241543,-1111.0,0.00016341,2]
[398485681,1765732241552,-11382.67742867,0.00016367,2]
[398485682,1765732241561,-250.0,0.00016369,2]
[398485683,1765732241570,-250.0,0.00016369,2]
[398485684,1765732241579,-2830.0,0.00016369,2]
[398485685,1765732241588,-151.0,0.00016397,2]
[398485686,1765732241597,-151.0,0.00016397,2]
[398485687,1765732241606,-151.0,0.00016397,2]
[398485688,1765732241615,-511.41874804,0.0001641,2]
[398485689,1765732241625,-500.0,0.0001641,2]
[398485690,1765732241635,-249.29,0.00016427,2]
[398485691,1765732241646,-500.0,0.00016437,2]
[398485692,1765732241655,-500.0,0.00016437,2]
[398485693,1765732241664,-500.0,0.00016438,2]
[398485694,1765732241673,-500.0,0.00016438,2]
[398485695,1765732241683,-500.0,0.00016438,2]
[398485696,1765732241692,-500.0,0.00016438,2]
[398485697,1765732241701,-500.0,0.00016438,2]
[398485698,1765732241710,-500.0,0.00016438,2]
[398485699,1765732241719,-500.0,0.00016438,2]
[398485700,1765732241728,-500.0,0.00016438,2]
[398485701,1765732241737,-500.0,0.00016438,2]
[398485702,1765732241747,-591.16416013,0.00016438,2]
[398485703,1765732241756,-500.0,0.00016438,2]
[398485704,1765732241765,-151.0,0.00016438,2]
[398485705,1765732241774,-151.0,0.00016438,2]
[398485706,1765732241783,-151.0,0.00016438,2]
[398485707,1765732241793,-151.0,0.00016438,2]
[398485708,1765732241802,-151.0,0.00016438,2]
[398485709,1765732241811,-151.0,0.00016438,2]
[398485710,1765732241821,-151.0,0.00016438,2]
[398485711,1765732241830,-844.087448,0.00016438,2]
[398485712,1765732241839,-844.087448,0.00016438,2]
[398485713,1765732241848,-844.087448,0.00016438,2]
[398485714,1765732241857,-844.087448,0.00016438,2]
[398485715,1765732241866,-844.087448,0.00016438,2]
[398485716,1765732241875,-844.087448,0.00016438,2]
[398485717,1765732241884,-844.087448,0.00016438,2]
[398485718,1765732241892,-844.08745,0.00016438,2]
[398485719,1765732241902,-151.0,0.00016438,2]
[398485720,1765732241911,-151.0,0.00016438,2]
[398485721,1765732241920,-621.631056,0.00016438,2]
[398485722,1765732241935,-621.631056,0.00016438,2]
[398485723,1765732241944,-621.631056,0.00016438,2]
[398485724,1765732241954,-621.631056,0.00016438,2]
[398485725,1765732241963,-621.631056,0.00016438,2]
[398485726,1765732241973,-621.631056,0.00016438,2]
[398485727,1765732241982,-621.631056,0.00016438,2]
[398485728,1765732241997,-621.631056,0.00016438,2]
[398485729,1765732242006,-151.0,0.00016438,2]
[398485730,1765732242017,-151.0,0.00016438,2]
[398485731,1765732242026,-151.0,0.00016438,2]
[398485732,1765732242039,-151.0,0.00016438,2]
[398485733,1765732242048,-151.0,0.00016438,2]
[398485734,1765732242058,-151.0,0.00016438,2]
[398485735,1765732242070,-151.0,0.00016438,2]
[398485736,1765732242080,-6942.97,0.00016438,2]
[398485737,1765732242090,-600.0,0.00016438,2]
[398485738,1765732242099,-151.0,0.00016438,2]
[398485739,1765732242109,-152.005557,0.00016438,2]
[398485740,1765732242119,-151.0,0.00016438,2]
[398485741,1765732242128,-165.056361,0.00016438,2]
[398485742,1765732242138,-151.0,0.00016438,2]
[398485743,1765732242148,-151.0,0.00016438,2]
[398485744,1765732242157,-153.73624,0.00016438,2]
[398485745,1765732242167,-151.0,0.00016438,2]
[398485746,1765732242179,-208.425024,0.00016438,2]
[398485747,1765732242190,-151.798814,0.00016438,2]
[398485755,1765732242724,-153.271408,0.00016438,2]
[398485756,1765732242733,-153.676486,0.00016438,2]
[398485757,1765732242742,-153.519291,0.00016438,2]
[398485758,1765732242752,-284.288283,0.00016438,2]
[398485759,1765732242761,-284.288283,0.00016438,2]
[398485760,1765732242770,-284.288283,0.00016438,2]
[398485761,1765732242779,-284.288283,0.00016438,2]
[398485762,1765732242789,-284.288283,0.00016438,2]
[398485763,1765732242798,-284.288283,0.00016438,2]
[398485764,1765732242807,-284.288283,0.00016438,2]
[398485765,1765732242816,-284.288283,0.00016438,2]
[398485766,1765732242826,-284.288283,0.00016438,2]
[398485767,1765732242835,-284.288283,0.00016438,2]
[398485768,1765732242845,-284.288283,0.00016438,2]
[398485769,1765732242855,-284.288283,0.00016438,2]
[398485770,1765732242864,-284.288283,0.00016438,2]
[398485771,1765732242873,-284.288283,0.00016438,2]
[398485772,1765732242882,-284.288283,0.00016438,2]
[398485773,1765732242893,-284.288283,0.00016438,2]
[398485774,1765732242903,-284.288283,0.00016438,2]
[398485775,1765732242916,-284.288283,0.00016438,2]
[398485776,1765732242925,-284.288283,0.00016438,2]
[398485777,1765732242934,-284.288283,0.00016438,2]
[398485778,1765732242944,-151.000005,0.00016438,2]
[398485779,1765732242954,-151.0,0.00016438,2]
[398485780,1765732242964,-151.0,0.00016438,2]
[398485781,1765732242973,-151.0,0.00016438,2]
[398485782,1765732242982,-153.839547,0.00016438,2]
[398485783,1765732242997,-272.764223,0.00016438,2]
[398485784,1765732243006,-154.566599,0.00016438,2]
[398485785,1765732243016,-151.0,0.00016438,2]
[398485786,1765732243025,-152.965602,0.00016438,2]
[398485788,1765732243035,-152.970606,0.00016438,2]
[398485790,1765732243045,-152.767036,0.00016438,2]
[398485791,1765732243055,-159.318919,0.00016438,2]
[398485792,1765732243067,-234.341352,0.00016438,2]
[398485793,1765732243076,-153.827329,0.00016438,2]
[398485794,1765732243085,-151.0,0.00016438,2]
[398485795,1765732243095,-151.0,0.00016438,2]
[398485796,1765732243104,-752.14,0.00016438,2]
[398485797,1765732243114,-151.542954,0.00016438,2]
[398485798,1765732243123,-154.023082,0.00016438,2]
[398485799,1765732243132,-151.0,0.00016438,2]